[Event "-chT Youth Countries 2019"]
[Site "Wuerzburg"]
[Date "2019.10.06"]
[Round "7.3"]
[White "Chassard, Cedric"]
[Black "Richter, Nils"]
[Result "1/2-1/2"]
[ECO "B40"]
[WhiteElo "1929"]
[BlackElo "2213"]
[Annotator "ChessBase"]
[PlyCount "73"]
[EventDate "2019.10.02"]
[EventType "team-tourn"]
[EventRounds "7"]
[EventCountry "GER"]
[SourceTitle "playchess.com"]
[Source "ChessBase"]
[SourceQuality "1"]
[WhiteTeam "Saarland"]
[BlackTeam "Württemberg"]
[TimeControl "40/5400+30:1800+30"]

1. e4 {[%emt 0:00:00]} c5 {[%emt 0:00:00]} 2. Nf3 {[%emt 0:00:00]} e6 {[%emt 0:00:00]} 3. g3 {[%emt 0:00:00]} Nc6 {[%emt 0:00:00]} 4. Bg2 {[%emt 0:00:01]} Nf6 {[%emt 0:00:03]} 5. Qe2 {[%emt 0:01:15]} e5 {[%emt 0:00:07]} 6. O-O {[%emt 0:01:18]} Be7 {[%emt 0:00:16]} 7. c3 {[%emt 0:03:21]} O-O {[%emt 0:00:24]} 8. d3 {[%emt 0:02:36]} h6 {[%emt 0:00:19]} 9. h3 {[%emt 0:01:47]} Re8 {[%emt 0:00:56]} 10. c4 Bf8 {[%emt 0:06:12]} 11. Nc3 {[%emt 0:06:25]} a6 {[%emt 0:02:24]} 12. b3 {[%emt 0:05:36]} b5 {[%emt 0:02:31]} 13. Nd5 {[%emt 0:04:38]} d6 {[%emt 0:06:12]} 14. Bd2 {[%emt 0:04:04]} g6 {[%emt 0:07:27]} 15. a3 {[%emt 0:14:00]} Rb8 {[%emt 0:01:46]} 16. Rab1 {[%emt 0:00:57]} Bg7 {[%emt 0:05:31]} 17. a4 {[%emt 0:02:40]} Kh7 {[%emt 0:05:59]} 18. Kh2 {[%emt 0:06:25]} Nxd5 {[%emt 0:02:20]} 19. cxd5 {[%emt 0:01:39]} Ne7 {[%emt 0:00:20]} 20. axb5 {[%emt 0:01:12]} Rxb5 {[%emt 0:04:38]} 21. b4 {[%emt 0:02:06]} cxb4 {[%emt 0:01:26]} 22. Rxb4 {[%emt 0:01:21]} Bd7 {[%emt 0:01:47]} 23. Rfb1 {[%emt 0:01:31]} Qb6 {[%emt 0:04:57]} 24. Ne1 {[%emt 0:02:07]} f5 {[%emt 0:03:15]} 25. Nc2 {[%emt 0:02:27]} Rb8 {[%emt 0:10:30]} 26. Na3 {[%emt 0:08:50]} Rxb4 {[%emt 0:00:02]} 27. Rxb4 {[%emt 0:00:16]} Bb5 {[%emt 0:01:15]} 28. Be3 {[%emt 0:03:31]} Qa5 {[%emt 0:12:23]} 29. Qb2 {[%emt 0:00:50]} f4 {[%emt 0:00:04]} 30. Bd2 {[%emt 0:04:13]} Qb6 {[%emt 0:00:25]} 31. Bc3 {[%emt 0:01:11]} fxg3+ {[%emt 0:01:23]} 32. fxg3 {[%emt 0:01:14]} Rf8 {[%emt 0:03:37]} 33. Nxb5 {[%emt 0:03:43]} Rf2 {[%emt 0:02:10]} 34. Qb1 {[%emt 0:00:51]} axb5 {[%emt 0:00:34]} 35. Rxb5 {[%emt 0:00:49]} Qc7 36. Rb2 Qb6 37. Rb5 {normal} 1/2-1/2

[Event "-chT Youth Countries 2019"]
[Site "Wuerzburg"]
[Date "2019.10.06"]
[Round "7.4"]
[White "Boder, Jan"]
[Black "Lutz, Ruben"]
[Result "1/2-1/2"]
[ECO "C07"]
[WhiteElo "2087"]
[BlackElo "2112"]
[Annotator "ChessBase"]
[PlyCount "64"]
[EventDate "2019.10.02"]
[EventType "team-tourn"]
[EventRounds "7"]
[EventCountry "GER"]
[SourceTitle "playchess.com"]
[Source "ChessBase"]
[SourceQuality "1"]
[WhiteTeam "Rheinland-Pfalz"]
[BlackTeam "Sachsen"]
[TimeControl "40/5400+30:1800+30"]

1. e4 {[%emt 0:00:00]} e6 {[%emt 0:00:00]} 2. d4 {[%emt 0:00:00]} d5 {[%emt 0:00:00]} 3. Nd2 {[%emt 0:00:15]} c5 {[%emt 0:00:05]} 4. c3 {[%emt 0:07:12]} Nc6 {[%emt 0:00:16]} 5. Ngf3 {[%emt 0:07:26]} Nf6 {[%emt 0:00:36]} 6. exd5 {[%emt 0:07:36]} exd5 {[%emt 0:01:01]} 7. dxc5 {[%emt 0:01:20]} Bxc5 {[%emt 0:00:09]} 8. Nb3 {[%emt 0:00:28]} Bb6 {[%emt 0:02:45]} 9. Be2 {[%emt 0:00:23]} h6 {[%emt 0:00:42]} 10. O-O {[%emt 0:00:08]} O-O {[%emt 0:00:09]} 11. Nbd4 {[%emt 0:00:52]} Re8 {[%emt 0:00:57]} 12. h3 {[%emt 0:00:31]} Ne4 {[%emt 0:02:00]} 13. Be3 {[%emt 0:00:38]} Bd7 {[%emt 0:08:30]} 14. Qb3 {[%emt 0:17:18]} Nxd4 {[%emt 0:02:09]} 15. Nxd4 {[%emt 0:01:46]} Bxd4 {[%emt 0:00:28]} 16. cxd4 {[%emt 0:00:20]} Nd2 {[%emt 0:15:58]} 17. Bxd2 {[%emt 0:02:44]} Rxe2 {[%emt 0:00:03]} 18. Qd3 {[%emt 0:04:11]} Re4 {[%emt 0:04:36]} 19. f3 {[%emt 0:02:02]} Re6 {[%emt 0:00:33]} 20. Rae1 {[%emt 0:15:12]} Qf6 {[%emt 0:07:38]} 21. Rxe6 {[%emt 0:01:56]} Bxe6 {[%emt 0:00:05]} 22. Rc1 {[%emt 0:00:19]} Re8 {[%emt 0:11:52]} 23. Qe3 {[%emt 0:07:57]} Bd7 {[%emt 0:02:14]} 24. Qf2 {[%emt 0:00:26]} Bb5 {[%emt 0:02:28]} 25. Re1 {[%emt 0:00:58]} Rxe1+ {[%emt 0:02:29]} 26. Bxe1 {[%emt 0:00:10]} Qf5 {[%emt 0:00:15]} 27. a3 {[%emt 0:00:27]} Qd3 {[%emt 0:01:07]} 28. Bc3 {[%emt 0:00:30]} Kh7 {[%emt 0:03:50]} 29. Kh2 {[%emt 0:00:08]} Bc4 {[%emt 0:01:17]} 30. Qd2 {[%emt 0:00:41]} Qg6 {[%emt 0:00:26]} 31. Qf4 {[%emt 0:00:49]} Bf1 {[%emt 0:04:01]} 32. Qg3 {[%emt 0:01:10]} Qxg3+ {[%emt 0:00:58] normal} 1/2-1/2

[Event "-chT Youth Countries 2019"]
[Site "Wuerzburg"]
[Date "2019.10.06"]
[Round "7.4"]
[White "Eilenberg, Jonas"]
[Black "Post, Hugo"]
[Result "0-1"]
[ECO "D05"]
[WhiteElo "2050"]
[BlackElo "2204"]
[Annotator "ChessBase"]
[PlyCount "56"]
[EventDate "2019.10.02"]
[EventType "team-tourn"]
[EventRounds "7"]
[EventCountry "GER"]
[SourceTitle "playchess.com"]
[Source "ChessBase"]
[SourceQuality "1"]
[WhiteTeam "Berlin"]
[BlackTeam "Sachsen-Anhalt"]
[TimeControl "40/5400+30:1800+30"]

1. d4 {[%emt 0:00:00]} Nf6 {[%emt 0:00:16]} 2. Nf3 {[%emt 0:00:00]} e6 {[%emt 0:00:14]} 3. e3 {[%emt 0:00:00]} d5 {[%emt 0:01:03]} 4. Bd3 {[%emt 0:00:08]} c5 {[%emt 0:00:34]} 5. c3 {[%emt 0:00:06]} Nc6 {[%emt 0:00:29]} 6. Nbd2 {[%emt 0:00:16]} Bd6 {[%emt 0:00:29]} 7. O-O {[%emt 0:00:07]} O-O {[%emt 0:00:23]} 8. dxc5 {[%emt 0:00:11]} Bxc5 {[%emt 0:00:38]} 9. b4 {[%emt 0:00:05]} Bd6 {[%emt 0:08:54]} 10. Bb2 {[%emt 0:00:33]} b6 {[%emt 0:09:28]} 11. a3 {[%emt 0:04:08]} e5 {[%emt 0:19:55]} 12. e4 {[%emt 0:00:23]} Bb7 {[%emt 0:01:02]} 13. exd5 {[%emt 0:13:32]} Nxd5 {[%emt 0:00:27]} 14. Nc4 {[%emt 0:00:37]} Bc7 {[%emt 0:01:33]} 15. Qc2 {[%emt 0:01:25]} Nf4 {[%emt 0:13:21]} 16. Bxh7+ {[%emt 0:01:39]} Kh8 {[%emt 0:00:01]} 17. Rad1 {[%emt 0:07:43]} Nd4 {[%emt 0:07:10]} 18. Nxd4 {[%emt 0:02:26]} exd4 {[%emt 0:01:10]} 19. f3 {[%emt 0:06:41]} g6 {[%emt 0:03:14]} 20. Rxd4 {[%emt 0:01:05]} Qh4 {[%emt 0:01:23]} 21. g3 {[%emt 0:05:53]} Qg5 {[%emt 0:04:30]} 22. Kh1 {[%emt 0:05:13]} Nh5 {[%emt 0:00:54]} 23. Rd7 {[%emt 0:11:10]} Rac8 {[%emt 0:04:15]} 24. Bc1 {[%emt 0:10:25]} Qf6 {[%emt 0:02:53]} 25. Bh6 {[%emt 0:01:12]} Rfe8 {[%emt 0:06:56]} 26. Qb3 {[%emt 0:08:39]} Re1 {[%emt 0:02:12]} 27. Ne5 {[%emt 0:02:14]} Rxf1+ {[%emt 0:00:50]} 28. Kg2 {[%emt 0:00:01]} Bxf3+ {[%emt 0:00:16] normal} 0-1

[Event "-chT Youth Countries 2019"]
[Site "Wuerzburg"]
[Date "2019.10.06"]
[Round "7.4"]
[White "Gutkin, Ilya"]
[Black "Lohvinov, Petro"]
[Result "1/2-1/2"]
[ECO "A05"]
[WhiteElo "2047"]
[BlackElo "2117"]
[Annotator "ChessBase"]
[PlyCount "129"]
[EventDate "2019.10.02"]
[EventType "team-tourn"]
[EventRounds "7"]
[EventCountry "GER"]
[SourceTitle "playchess.com"]
[Source "ChessBase"]
[SourceQuality "1"]
[WhiteTeam "Nordrhein-Westfalen"]
[BlackTeam "Bayern 1"]
[TimeControl "40/5400+30:1800+30"]

1. Nf3 {[%emt 0:00:00]} Nf6 {[%emt 0:00:00]} 2. c4 {[%emt 0:00:06]} g6 {[%emt 0:00:00]} 3. b3 {[%emt 0:00:04]} Bg7 {[%emt 0:00:00]} 4. Bb2 {[%emt 0:00:04]} O-O {[%emt 0:00:00]} 5. g3 {[%emt 0:00:04]} d6 {[%emt 0:00:00]} 6. d4 {[%emt 0:00:05]} c5 {[%emt 0:02:11]} 7. Bg2 {[%emt 0:01:45]} Nc6 {[%emt 0:05:12]} 8. O-O {[%emt 0:02:26]} Bg4 {[%emt 0:12:56]} 9. Nbd2 {[%emt 0:05:49]} Qc8 {[%emt 0:10:37]} 10. d5 {[%emt 0:21:12]} Nb4 {[%emt 0:04:44]} 11. a3 {[%emt 0:04:36]} Na6 {[%emt 0:00:01]} 12. e4 {[%emt 0:01:21]} Rb8 {[%emt 0:12:48]} 13. Qc2 {[%emt 0:03:51]} b5 {[%emt 0:04:23]} 14. Rfe1 {[%emt 0:16:30]} bxc4 {[%emt 0:00:12]} 15. Nxc4 {[%emt 0:01:36]} Nc7 {[%emt 0:10:26]} 16. Nfd2 {[%emt 0:06:27]} Re8 {[%emt 0:08:54]} 17. Bc3 {[%emt 0:13:24]} Nb5 {[%emt 0:00:43]} 18. Bb2 {[%emt 0:00:43]} Bh3 {[%emt 0:02:24]} 19. b4 {[%emt 0:04:12]} Bxg2 {[%emt 0:01:05]} 20. Kxg2 {[%emt 0:00:05]} Nd4 {[%emt 0:01:11]} 21. Bxd4 {[%emt 0:00:39]} cxd4 {[%emt 0:00:07]} 22. Qd3 {[%emt 0:00:52]} Nd7 {[%emt 0:00:38]} 23. f4 {[%emt 0:05:45]} Qa6 {[%emt 0:00:54]} 24. Nb3 {[%emt 0:01:44]} Rbc8 {[%emt 0:02:51]} 25. Rec1 {[%emt 0:01:36]} Nb6 {[%emt 0:00:48]} 26. Ne5 {[%emt 0:01:43]} Qxd3 {[%emt 0:00:49]} 27. Nxd3 {[%emt 0:00:04]} f5 {[%emt 0:03:21]} 28. Kf3 {[%emt 0:02:54]} Rxc1 {[%emt 0:02:05]} 29. Nbxc1 {[%emt 0:01:35]} Rc8 {[%emt 0:05:38]} 30. Ra2 {[%emt 0:00:21]} Rc3 {[%emt 0:02:06]} 31. h3 {[%emt 0:02:06]} Nc4 {[%emt 0:00:25]} 32. a4 {[%emt 0:00:20]} Kf7 {[%emt 0:05:10]} 33. a5 {[%emt 0:00:33]} Na3 {[%emt 0:02:10]} 34. g4 {[%emt 0:00:35]} fxe4+ {[%emt 0:00:04]} 35. Kxe4 {[%emt 0:00:09]} Nb5 {[%emt 0:00:39]} 36. a6 {[%emt 0:01:18]} Rc4 {[%emt 0:00:29]} 37. Ra5 {[%emt 0:00:11]} Nc3+ {[%emt 0:00:43]} 38. Kf3 {[%emt 0:00:04]} Rc8 {[%emt 0:01:00]} 39. Nb3 {[%emt 0:01:22]} Rb8 {[%emt 0:00:52]} 40. Nbc1 {[%emt 0:01:12]} Rb5 {[%emt 0:00:50]} 41. Rxb5 {[%emt 0:12:03]} Nxb5 {[%emt 0:00:01]} 42. Ne2 {[%emt 0:00:47]} Ke8 {[%emt 0:00:55]} 43. Ke4 {[%emt 0:02:03]} Kd7 {[%emt 0:01:33]} 44. Ndc1 {[%emt 0:02:57]} Kc7 {[%emt 0:01:58]} 45. Nb3 {[%emt 0:00:42]} Nc3+ {[%emt 0:07:55]} 46. Nxc3 {[%emt 0:01:29]} dxc3 {[%emt 0:00:02]} 47. Kd3 {[%emt 0:00:10]} Kb6 {[%emt 0:00:29]} 48. Na5 {[%emt 0:00:18]} Kxa6 {[%emt 0:00:39]} 49. Nc6 {[%emt 0:00:16]} Kb5 {[%emt 0:01:05]} 50. Nxa7+ {[%emt 0:03:00]} Kxb4 {[%emt 0:00:12]} 51. Nc6+ {[%emt 0:01:12]} Kb3 {[%emt 0:00:29]} 52. Na5+ {[%emt 0:00:29]} Kb2 {[%emt 0:01:33]} 53. Nc4+ {[%emt 0:00:06]} Kb1 {[%emt 0:02:32]} 54. Ne3 {[%emt 0:05:36]} Kc1 {[%emt 0:02:03]} 55. g5 {[%emt 0:01:37]} Bh8 {[%emt 0:05:19]} 56. f5 {[%emt 0:00:18]} Kb1 {[%emt 0:02:51]} 57. fxg6 {[%emt 0:00:16]} hxg6 {[%emt 0:00:07]} 58. Nc2 {[%emt 0:00:04]} Be5 {[%emt 0:00:50]} 59. Ne3 {[%emt 0:01:23]} Kc1 {[%emt 0:05:04]} 60. Nc2 {[%emt 0:00:17]} Kd1 {[%emt 0:00:28]} 61. Ne3+ {[%emt 0:00:12]} Ke1 {[%emt 0:00:49]} 62. Ng2+ {[%emt 0:00:11]} Kd1 {[%emt 0:00:39]} 63. Ne3+ {[%emt 0:00:06]} Ke1 {[%emt 0:00:38]} 64. Ng2+ {[%emt 0:00:05]} Kd1 {[%emt 0:00:57]} 65. Ne3+ {normal} 1/2-1/2

[Event "-chT Youth Countries 2019"]
[Site "Wuerzburg"]
[Date "2019.10.06"]
[Round "7.4"]
[White "Deuer, Marius"]
[Black "Mueller, Maximilian"]
[Result "1-0"]
[ECO "B15"]
[WhiteElo "1993"]
[BlackElo "2308"]
[Annotator "ChessBase"]
[PlyCount "63"]
[EventDate "2019.10.02"]
[EventType "team-tourn"]
[EventRounds "7"]
[EventCountry "GER"]
[SourceTitle "playchess.com"]
[Source "ChessBase"]
[SourceQuality "1"]
[WhiteTeam "Württemberg"]
[BlackTeam "Saarland"]
[TimeControl "40/5400+30:1800+30"]

1. e4 {[%emt 0:14:56]} c6 {[%emt 0:00:00]} 2. d4 {[%emt 0:00:03]} d5 {[%emt 0:00:00]} 3. Nd2 {[%emt 0:00:01]} dxe4 {[%emt 0:00:00]} 4. Nxe4 {[%emt 0:00:01]} Nf6 {[%emt 0:00:00]} 5. Nxf6+ {[%emt 0:00:05]} exf6 {[%emt 0:00:05]} 6. c3 {[%emt 0:00:04]} Bd6 {[%emt 0:00:24]} 7. Bd3 {[%emt 0:00:06]} O-O {[%emt 0:00:18]} 8. Qc2 {[%emt 0:00:23]} Re8+ {[%emt 0:00:38]} 9. Ne2 {[%emt 0:00:08]} h5 {[%emt 0:00:07]} 10. O-O {[%emt 0:02:03]} h4 {[%emt 0:00:38]} 11. h3 {[%emt 0:03:19]} Nd7 {[%emt 0:04:35]} 12. Bf4 {[%emt 0:03:25]} Rxe2 {[%emt 0:05:52]} 13. Qxe2 {[%emt 0:00:04]} Bxf4 {[%emt 0:00:14]} 14. Qe4 {[%emt 0:00:04]} Qc7 {[%emt 0:05:03]} 15. Qh7+ {[%emt 0:03:03]} Kf8 {[%emt 0:00:08]} 16. Rae1 {[%emt 0:00:34]} Be5 {[%emt 0:00:56]} 17. dxe5 {[%emt 0:00:59]} fxe5 {[%emt 0:00:18]} 18. f4 {[%emt 0:08:24]} Nf6 {[%emt 0:06:49]} 19. Qh8+ {[%emt 0:01:15]} Ke7 {[%emt 0:01:17]} 20. fxe5 {[%emt 0:02:55]} Nd5 {[%emt 0:00:40]} 21. Qxh4+ {[%emt 0:00:20]} Ke8 {[%emt 0:00:31]} 22. e6 {[%emt 0:03:37]} f6 {[%emt 0:01:20]} 23. Qh8+ {[%emt 0:00:45]} Ke7 {[%emt 0:00:12]} 24. Qxg7+ {[%emt 0:03:34]} Kd6 {[%emt 0:00:37]} 25. e7 {[%emt 0:01:45]} Bd7 {[%emt 0:00:14]} 26. Rxf6+ {[%emt 0:01:19]} Kc5 {[%emt 0:02:08]} 27. Rf8 {[%emt 0:02:20]} Re8 {[%emt 0:00:20]} 28. b4+ {[%emt 0:01:51]} Nxb4 {[%emt 0:00:55]} 29. cxb4+ {[%emt 0:00:10]} Kxb4 {[%emt 0:00:12]} 30. Qd4+ {[%emt 0:00:23]} Ka3 {[%emt 0:00:22]} 31. Qc3+ {[%emt 0:00:06]} Kxa2 {[%emt 0:00:35]} 32. Bb1# {normal} 1-0

[Event "-chT Youth Countries 2019"]
[Site "Wuerzburg"]
[Date "2019.10.06"]
[Round "7.4"]
[White "Danninger, Jannik"]
[Black "Hecht, Jonas Christian"]
[Result "1-0"]
[ECO "C44"]
[WhiteElo "1990"]
[BlackElo "1775"]
[Annotator "NA"]
[PlyCount "85"]
[EventDate "2019.10.02"]
[EventType "team-tourn"]
[EventRounds "7"]
[EventCountry "GER"]
[SourceTitle "playchess.com"]
[Source "ChessBase"]
[SourceQuality "1"]
[WhiteTeam "Bayern 2"]
[BlackTeam "Baden 2"]
[TimeControl "40/5400+30:1800+30"]

1. e4 {[%emt 0:00:00]} e5 {[%emt 0:00:00]} 2. Nf3 {[%emt 0:00:00]} Nc6 {[%emt 0:00:00]} 3. d4 {[%emt 0:00:00]} exd4 {[%emt 0:00:00]} 4. Nxd4 {[%emt 0:00:00]} Nf6 {[%emt 0:00:00]} 5. Nc3 {[%emt 0:00:09]} Bb4 {[%emt 0:00:26]} 6. Nxc6 {[%emt 0:00:08]} bxc6 {[%emt 0:00:05]} 7. Bd3 {[%emt 0:00:07] unterminated} d5 {[%emt 0:06:20]} 8. exd5 {[%emt 0:00:06]} cxd5 {[%emt 0:00:06] unterminated} 9. O-O {[%emt 0:00:07]} O-O {[%emt 0:00:07]} 10. h3 {[%emt 0:00:08] unterminated unterminated. C47: Scotch Four Knights and Four Knights with 4 g3} (10. Bg5 c6 11. Qf3 Bd6 12. Rae1 Rb8 13. Nd1 h6 14. Bxf6 Qxf6 15. Qxf6 gxf6 16. b3 f5 17. Ne3 f4 18. Nf5 Bxf5 19. Bxf5 Kg7 20. g3 Kf6 21. Bd3 {½-½ (30) Movsesian,S (2654)-Ding,L (2811) Khanty-Mansiysk 2019}) 10... h6 {[%emt 0:00:26]} 11. Qf3 {[%emt 0:00:58]} c6 {[%emt 0:01:32] unterminated} 12. Ne2 {[%emt 0:02:44] unterminated} Re8 {[%emt 0:09:03] unterminated} 13. Nd4 {[%emt 0:01:04]} Bd7 {[%emt 0:03:37] unterminated} 14. Bf4 {[%emt 0:01:26] [#]} Ne4 $146 {[%emt 0:00:59]} ({Predecessor:} 14... c5 15. c3 Bxc3 16. bxc3 cxd4 17. cxd4 Ne4 {0-1 (59) Petrov,D (2215)-Brunello,S (2566) Riga 2017}) 15. c3 {[%emt 0:02:24] unterminated} Bd6 {[%emt 0:02:54] unterminated} 16. Rae1 {[%emt 0:03:34]} Bxf4 {[%emt 0:01:20]} 17. Qxf4 {[%emt 0:00:49] unterminated} Qf6 {[%emt 0:02:48]} 18. Qxf6 {[%emt 0:01:41]} Nxf6 {[%emt 0:01:43] unterminated} 19. c4 {[%emt 0:00:47] unterminated} c5 {[%emt 0:04:07] unterminated} 20. Nb3 {[%emt 0:00:53] unterminated} Rac8 $11 {[%emt 0:00:43]} 21. Rxe8+ {[%emt 0:00:46]} Nxe8 {[%emt 0:04:25]} 22. Re1 {[%emt 0:01:36]} Kf8 {[%emt 0:22:15]} 23. Re5 {[%emt 0:04:29]} Nf6 {[%emt 0:00:54]} 24. Nd2 {[%emt 0:02:25]} Be6 {[%emt 0:00:46]} 25. Bf5 {[%emt 0:02:49]} Bxf5 {[%emt 0:03:23]} 26. Rxf5 {[%emt 0:00:12]} Ke7 {[%emt 0:01:39]} 27. b3 {[%emt 0:03:04]} Ke6 {[%emt 0:00:53]} 28. g4 {[%emt 0:02:02]} d4 {[%emt 0:00:32]} 29. f4 {[%emt 0:01:42]} g6 {[%emt 0:02:56]} 30. Re5+ {[%emt 0:00:32]} Kd6 {[%emt 0:00:10]} 31. Kg2 {[%emt 0:01:47]} Rc7 {[%emt 0:00:47]} 32. Kf3 {[%emt 0:01:13]} Re7 {[%emt 0:00:56]} 33. Ne4+ {[%emt 0:01:46]} Nxe4 {[%emt 0:00:11]} 34. Kxe4 {[%emt 0:00:28]} Rxe5+ {[%emt 0:00:13]} 35. fxe5+ {[%emt 0:00:09]} Ke6 {[%emt 0:00:04]} 36. b4 {[%emt 0:01:26]} cxb4 {[%emt 0:00:43]} 37. Kxd4 {[%emt 0:00:09]} a5 {[%emt 0:00:17]} 38. c5 {[%emt 0:01:20]} a4 {[%emt 0:00:30]} 39. c6 {[%emt 0:02:06]} Ke7 {[%emt 0:03:21]} 40. Kc4 {[%emt 0:00:27]} Kd8 {[%emt 0:00:12]} 41. Kxb4 {[%emt 0:30:16]} Kc7 {[%emt 0:30:18]} 42. Kc5 {[%emt 0:01:14]} a3 {[%emt 0:00:19]} 43. Kb5 {[%emt 0:00:31] normal} 1-0

[Event "-chT Youth Countries 2019"]
[Site "Wuerzburg"]
[Date "2019.10.06"]
[Round "7.4"]
[White "Glinzner, Alva"]
[Black "Hommer, Jeremy"]
[Result "0-1"]
[ECO "B10"]
[WhiteElo "1897"]
[BlackElo "2133"]
[Annotator "ChessBase"]
[PlyCount "136"]
[EventDate "2019.10.02"]
[EventType "team-tourn"]
[EventRounds "7"]
[EventCountry "GER"]
[SourceTitle "playchess.com"]
[Source "ChessBase"]
[SourceQuality "1"]
[WhiteTeam "Schleswig-Holstein"]
[BlackTeam "Niedersachsen"]
[TimeControl "40/5400+30:1800+30"]

1. e4 {[%emt 0:00:00]} c6 {[%emt 0:00:05]} 2. Nf3 {[%emt 0:00:29]} d5 {[%emt 0:00:07]} 3. Nc3 {[%emt 0:00:10]} dxe4 {[%emt 0:00:08]} 4. Nxe4 {[%emt 0:00:35]} Nf6 {[%emt 0:00:09]} 5. Qe2 {[%emt 0:01:08]} Nxe4 {[%emt 0:10:50]} 6. Qxe4 {[%emt 0:00:19]} Nd7 {[%emt 0:01:52]} 7. Bc4 {[%emt 0:01:13]} Nf6 {[%emt 0:01:31]} 8. Ne5 {[%emt 0:01:23]} e6 {[%emt 0:01:01]} 9. Qe2 {[%emt 0:00:19]} Bd6 {[%emt 0:09:47]} 10. d4 {[%emt 0:06:35]} h6 {[%emt 0:07:37]} 11. c3 {[%emt 0:02:42]} O-O {[%emt 0:07:52]} 12. O-O {[%emt 0:01:03]} Qe7 {[%emt 0:13:49]} 13. Bf4 {[%emt 0:12:34]} Bd7 {[%emt 0:08:39]} 14. Rad1 {[%emt 0:02:11]} Rac8 {[%emt 0:11:25]} 15. Rd3 {[%emt 0:08:31]} Kh8 {[%emt 0:05:52]} 16. Rfd1 {[%emt 0:01:30]} Rcd8 {[%emt 0:03:48]} 17. Rh3 {[%emt 0:03:53]} Ng8 {[%emt 0:00:53]} 18. Bd3 {[%emt 0:03:04]} Be8 {[%emt 0:00:51]} 19. Bc2 {[%emt 0:06:04]} f6 {[%emt 0:01:21]} 20. Qe4 {[%emt 0:05:04]} g5 {[%emt 0:03:48]} 21. Bc1 {[%emt 0:05:56]} Bxe5 {[%emt 0:03:06]} 22. dxe5 {[%emt 0:00:34]} Rxd1+ {[%emt 0:00:38]} 23. Bxd1 {[%emt 0:00:03]} f5 {[%emt 0:00:11]} 24. Qc4 {[%emt 0:04:24]} b5 {[%emt 0:00:11]} 25. Qd4 {[%emt 0:01:16]} c5 {[%emt 0:01:04]} 26. Qd2 {[%emt 0:00:54]} Kg7 {[%emt 0:01:04]} 27. Rd3 {[%emt 0:01:41]} Qf7 {[%emt 0:01:53]} 28. Rd6 {[%emt 0:08:36]} Ne7 {[%emt 0:00:25]} 29. Bf3 {[%emt 0:02:06]} Nc8 {[%emt 0:01:48]} 30. Rd3 {[%emt 0:01:09]} Qc7 {[%emt 0:00:22]} 31. Qe3 {[%emt 0:02:00]} f4 {[%emt 0:01:20]} 32. Qe2 {[%emt 0:01:35]} Bg6 {[%emt 0:00:20]} 33. Rd2 {[%emt 0:00:47]} a6 {[%emt 0:00:32]} 34. c4 {[%emt 0:03:08]} b4 {[%emt 0:01:10]} 35. b3 {[%emt 0:00:55]} Rd8 {[%emt 0:00:26]} 36. g3 {[%emt 0:01:43]} fxg3 {[%emt 0:00:16]} 37. fxg3 {[%emt 0:01:18]} Ne7 {[%emt 0:00:26]} 38. Rxd8 {[%emt 0:01:20]} Qxd8 {[%emt 0:00:01]} 39. Be3 {[%emt 0:00:20]} Qc7 {[%emt 0:00:31]} 40. Qf2 {[%emt 0:00:21]} Qxe5 {[%emt 0:01:32]} 41. Bxc5 {[%emt 0:30:26]} Qa1+ {[%emt 0:08:47]} 42. Kg2 {[%emt 0:00:00]} Nf5 {[%emt 0:03:20]} 43. Bxb4 {[%emt 0:00:00]} h5 {[%emt 0:06:35]} 44. Qd2 {[%emt 0:00:00]} Kh7 {[%emt 0:03:42]} 45. Bc3 {[%emt 0:00:00]} Qb1 {[%emt 0:00:20]} 46. Qd7+ {[%emt 0:00:00]} Kh6 {[%emt 0:00:32]} 47. Bd2 {[%emt 0:00:00]} h4 {[%emt 0:05:04]} 48. Qd8 {[%emt 0:00:00]} Qxa2 {[%emt 0:03:35]} 49. Qh8+ {[%emt 0:00:00]} Bh7 {[%emt 0:00:01]} 50. Qf8+ {[%emt 0:00:30]} Kg6 {[%emt 0:00:55]} 51. Qe8+ {[%emt 0:00:42]} Kg7 {[%emt 0:01:05]} 52. Qd7+ {[%emt 0:00:51]} Kf6 {[%emt 0:00:17]} 53. Qd8+ {[%emt 0:00:52]} Ke5 {[%emt 0:01:05]} 54. Be2 {[%emt 0:02:24]} Qxb3 {[%emt 0:01:47]} 55. Qa5+ {[%emt 0:04:35]} Kf6 {[%emt 0:00:29]} 56. Bc3+ {[%emt 0:00:27]} Kg6 {[%emt 0:00:01]} 57. Qe5 {[%emt 0:00:26]} Qb7+ {[%emt 0:00:21]} 58. Bf3 {[%emt 0:00:25]} Qf7 {[%emt 0:00:18]} 59. c5 {[%emt 0:01:42]} hxg3 {[%emt 0:01:37]} 60. hxg3 {[%emt 0:00:18]} Kh6 {[%emt 0:00:37]} 61. Qe1 {[%emt 0:00:44]} Bg6 {[%emt 0:00:12]} 62. c6 {[%emt 0:02:03]} Qc7 {[%emt 0:00:49]} 63. Qh1+ {[%emt 0:00:21]} Nh4+ {[%emt 0:00:27]} 64. gxh4 {[%emt 0:00:12]} g4 {[%emt 0:00:01]} 65. Bd2+ {[%emt 0:01:55]} Kh7 {[%emt 0:00:11]} 66. Bxg4 {[%emt 0:00:21]} Be4+ {[%emt 0:00:01]} 67. Bf3 {[%emt 0:00:16]} Bxf3+ {[%emt 0:00:01]} 68. Kxf3 {[%emt 0:00:10]} Qxc6+ {normal} 0-1